[Event "Lueneburg Open-A 2019"]
[Site "Lueneburg"]
[Date "2019.08.09"]
[Round "7.6"]
[White "Hommer, Jeremy"]
[Black "Voigt, Martin"]
[Result "1-0"]
[ECO "D00"]
[WhiteElo "2083"]
[BlackElo "2344"]
[Annotator "NA"]
[PlyCount "127"]
[EventDate "2019.08.03"]
[EventType "swiss"]
[EventCountry "GER"]
[SourceTitle "playchess.com"]
[Source "ChessBase"]
[SourceQuality "1"]
[TimeControl "40/5400+30:1800+30"]

1. d4 {[%emt 0:00:00]} d5 {[%emt 0:00:00]} 2. Bf4 {[%emt 0:00:00]} Nf6 {[%emt 0:00:00]} 3. e3 {[%emt 0:00:00]} c5 {[%emt 0:00:00]} 4. c3 {[%emt 0:00:00]} Nc6 {[%emt 0:00:00]} 5. Nd2 {[%emt 0:00:00]} cxd4 {[%emt 0:00:12]} 6. exd4 {[%emt 0:00:04]} Bf5 {[%emt 0:00:28]} 7. Ngf3 {[%emt 0:00:09]} e6 {[%emt 0:00:09]} 8. Nh4 {[%emt 0:01:38]} Be4 {[%emt 0:00:48]} 9. Nxe4 {[%emt 0:00:09]} Nxe4 {[%emt 0:01:10]} 10. Nf3 {[%emt 0:03:45]} Bd6 {[%emt 0:00:36]} 11. Bxd6 {[%emt 0:02:37]} Nxd6 {[%emt 0:00:13]} 12. Bd3 {[%emt 0:02:24]} O-O {[%emt 0:01:02]} 13. O-O {[%emt 0:00:56]} b5 {[%emt 0:06:03]} 14. Re1 {[%emt 0:14:41]} h6 {[%emt 0:11:14]} 15. Qe2 {[%emt 0:14:12]} Qb6 {[%emt 0:03:49]} 16. Ne5 {[%emt 0:02:06]} Nxe5 {[%emt 0:02:12]} 17. dxe5 {[%emt 0:02:43]} Nc4 {[%emt 0:06:16]} 18. b3 {[%emt 0:01:17]} Na3 {[%emt 0:00:20]} 19. Qg4 {[%emt 0:02:04]} a5 {[%emt 0:05:24]} 20. Re3 {[%emt 0:02:06]} f5 {[%emt 0:03:01]} 21. Qg6 {[%emt 0:09:40]} Ra7 {[%emt 0:06:16]} 22. g4 {[%emt 0:04:09]} Raf7 {[%emt 0:12:15]} 23. gxf5 {[%emt 0:16:39]} Rxf5 {[%emt 0:00:19]} 24. Bxf5 {[%emt 0:00:26]} Rxf5 {[%emt 0:00:06]} 25. Rg3 {[%emt 0:00:20]} Rf7 {[%emt 0:03:48]} 26. Kh1 {[%emt 0:01:01]} d4 {[%emt 0:10:47]} 27. Rag1 {[%emt 0:03:35]} Qb7+ {[%emt 0:01:44]} 28. f3 {[%emt 0:00:25]} dxc3 {[%emt 0:06:03]} 29. Qxe6 {[%emt 0:01:23]} Kh8 {[%emt 0:01:00]} 30. Qe8+ {[%emt 0:01:48]} Kh7 {[%emt 0:00:06]} 31. e6 {[%emt 0:00:18]} Re7 {[%emt 0:01:08]} 32. Qg6+ {[%emt 0:01:01]} Kh8 {[%emt 0:00:06]} 33. Rh3 {[%emt 0:03:09]} Kg8 {[%emt 0:06:48]} 34. Qf5 {[%emt 0:00:21]} Qb6 {[%emt 0:06:15]} 35. Rxh6 {[%emt 0:08:34]} Qxg1+ {[%emt 0:00:10]} 36. Kxg1 {[%emt 0:00:00]} gxh6 {[%emt 0:00:09]} 37. Qc5 {[%emt 0:00:50]} c2 {[%emt 0:06:47]} 38. Qxa3 {[%emt 0:00:39]} Rxe6 {[%emt 0:00:06]} 39. Kf2 {[%emt 0:01:09]} Rc6 {[%emt 0:00:22]} 40. Qc1 {[%emt 0:00:19]} Kg7 {[%emt 0:00:15]} 41. Ke3 {[%emt 0:31:01]} Kg6 {[%emt 0:31:00]} 42. Ke4 {[%emt 0:01:19]} b4 {[%emt 0:00:00]} 43. h4 {[%emt 0:00:00]} Rc3 {[%emt 0:00:00]} 44. h5+ {[%emt 0:00:00]} Kf7 {[%emt 0:00:00]} 45. f4 {[%emt 0:00:00]} Kf6 {[%emt 0:00:00]} 46. f5 {[%emt 0:00:00]} Kf7 {[%emt 0:00:00]} 47. Ke5 {[%emt 0:00:00]} Rc5+ {[%emt 0:00:00]} 48. Kd6 {[%emt 0:00:00]} Rc3 {[%emt 0:00:00]} 49. f6 {[%emt 0:00:00]} Kxf6 {[%emt 0:00:00]} 50. Qxh6+ {[%emt 0:00:00]} Kf5 {[%emt 0:00:00]} 51. Qc1 {[%emt 0:00:00]} Ke4 {[%emt 0:06:09]} 52. h6 {[%emt 0:02:54]} Kd3 {[%emt 0:00:04]} 53. h7 {[%emt 0:01:59]} Rc8 {[%emt 0:00:05]} 54. Qf1+ {[%emt 0:00:18]} Kd2 {[%emt 0:00:10]} 55. Qg2+ {[%emt 0:00:12]} Kc1 {[%emt 0:01:20]} 56. Qg8 {[%emt 0:01:34]} Rxg8 {[%emt 0:00:11]} 57. hxg8=Q {[%emt 0:00:07]} Kb2 {[%emt 0:00:53]} 58. Qg2 {[%emt 0:00:01]} Kb1 {[%emt 0:00:09]} 59. Qe4 {[%emt 0:00:07]} Kb2 {[%emt 0:00:09]} 60. Qe2 {[%emt 0:00:01]} Kb1 {[%emt 0:00:12]} 61. Qd3 {[%emt 0:00:01]} Kb2 {[%emt 0:01:01]} 62. Qd2 {[%emt 0:00:01]} Kb1 {[%emt 0:00:16]} 63. Kc5 {[%emt 0:00:31]} a4 {[%emt 0:01:15]} 64. bxa4 {[%emt 0:00:55]} 1-0

[Event "Lueneburg Open-A 2019"]
[Site "Lueneburg"]
[Date "2019.08.09"]
[Round "7.7"]
[White "Wachinger, David"]
[Black "Kolbus, Dietmar"]
[Result "1/2-1/2"]
[ECO "D70"]
[WhiteElo "2045"]
[BlackElo "2281"]
[Annotator "NA"]
[PlyCount "82"]
[EventDate "2019.08.03"]
[EventType "swiss"]
[EventCountry "GER"]
[SourceTitle "playchess.com"]
[Source "ChessBase"]
[SourceQuality "1"]
[TimeControl "40/5400+30:1800+30"]

1. d4 {[%emt 0:00:00]} Nf6 {[%emt 0:00:00]} 2. c4 {[%emt 0:00:12]} g6 {[%emt 0:00:03]} 3. f3 {[%emt 0:00:06]} d5 {[%emt 0:01:31]} 4. cxd5 {[%emt 0:00:11]} Nxd5 {[%emt 0:00:03]} 5. e4 {[%emt 0:00:15]} Nb6 {[%emt 0:00:06]} 6. Nc3 {[%emt 0:00:26]} Bg7 {[%emt 0:00:08]} 7. Be3 {[%emt 0:00:07]} O-O {[%emt 0:01:58]} 8. Qd2 {[%emt 0:00:28]} e5 {[%emt 0:00:08]} 9. d5 {[%emt 0:00:33]} c6 {[%emt 0:00:14]} 10. h4 {[%emt 0:00:43]} cxd5 {[%emt 0:00:19]} 11. exd5 {[%emt 0:00:03]} f5 {[%emt 0:26:43]} 12. Bg5 {[%emt 0:11:11]} Bf6 {[%emt 0:00:41]} 13. O-O-O {[%emt 0:10:14]} Na6 {[%emt 0:06:13]} 14. Nh3 {[%emt 0:02:12]} Bxg5 {[%emt 0:01:40]} 15. Nxg5 {[%emt 0:13:03]} h6 {[%emt 0:02:37]} 16. Nh3 {[%emt 0:01:07]} Kg7 {[%emt 0:00:48]} 17. Nf2 {[%emt 0:06:20]} Bd7 {[%emt 0:09:17]} 18. Kb1 {[%emt 0:01:30]} Rc8 {[%emt 0:00:21]} 19. Be2 {[%emt 0:26:18]} Nc5 {[%emt 0:03:12]} 20. g4 {[%emt 0:00:50]} fxg4 {[%emt 0:09:36]} 21. Nxg4 {[%emt 0:00:44]} Bxg4 {[%emt 0:00:30]} 22. fxg4 {[%emt 0:00:01]} Rf4 {[%emt 0:00:58]} 23. Qe3 {[%emt 0:02:05]} Nbd7 {[%emt 0:04:01]} 24. g5 {[%emt 0:02:06]} hxg5 {[%emt 0:02:58]} 25. hxg5 {[%emt 0:00:01]} Qxg5 {[%emt 0:00:25]} 26. Rdg1 {[%emt 0:01:05]} Qf5+ {[%emt 0:00:18]} 27. Ka1 {[%emt 0:00:25]} Rh8 {[%emt 0:00:16]} 28. Rxh8 {[%emt 0:07:06]} Kxh8 {[%emt 0:00:02]} 29. Qg3 {[%emt 0:02:18]} Kg7 {[%emt 0:00:29]} 30. Rh1 {[%emt 0:00:30]} Nf6 {[%emt 0:03:38]} 31. d6 {[%emt 0:06:18]} Nce4 {[%emt 0:09:55]} 32. Nxe4 {[%emt 0:00:38]} Qxe4 {[%emt 0:01:06]} 33. Qh2 {[%emt 0:02:39]} Qc6 {[%emt 0:00:41]} 34. Bd3 {[%emt 0:01:18]} Kf7 {[%emt 0:02:13]} 35. Qh6 {[%emt 0:02:36]} Ke6 {[%emt 0:02:08]} 36. Bxg6 {[%emt 0:00:54]} Qxd6 {[%emt 0:03:09]} 37. Bc2 {[%emt 0:00:05]} Kd7 {[%emt 0:02:57]} 38. Rd1 {[%emt 0:00:59]} Rd4 {[%emt 0:00:19]} 39. Rf1 {[%emt 0:00:10]} Rf4 {[%emt 0:04:55]} 40. Rd1 {[%emt 0:00:40]} Rd4 {[%emt 0:00:06]} 41. Rf1 {[%emt 0:30:24]} Rf4 {[%emt 0:03:42]} 1/2-1/2

[Event "Lueneburg Open-A 2019"]
[Site "Lueneburg"]
[Date "2019.08.09"]
[Round "7.8"]
[White "Poeck, Ole"]
[Black "von Estorff, Jacob"]
[Result "1/2-1/2"]
[ECO "B38"]
[WhiteElo "2259"]
[BlackElo "2055"]
[Annotator "NA"]
[PlyCount "71"]
[EventDate "2019.08.03"]
[EventType "swiss"]
[EventCountry "GER"]
[SourceTitle "playchess.com"]
[Source "ChessBase"]
[SourceQuality "1"]
[TimeControl "40/5400+30:1800+30"]

1. e4 {[%emt 0:00:00]} c5 {[%emt 0:00:00]} 2. Nf3 {[%emt 0:00:00]} Nc6 {[%emt 0:00:00]} 3. d4 {[%emt 0:00:02]} cxd4 {[%emt 0:00:00]} 4. Nxd4 {[%emt 0:00:07]} g6 {[%emt 0:00:20]} 5. c4 {[%emt 0:00:07]} Bg7 {[%emt 0:00:06]} 6. Be3 {[%emt 0:00:06]} Nf6 {[%emt 0:00:06]} 7. Nc3 {[%emt 0:00:05]} d6 {[%emt 0:01:01]} 8. f3 {[%emt 0:00:09]} Bd7 {[%emt 0:00:27]} 9. Qd2 {[%emt 0:00:46]} O-O {[%emt 0:01:30]} 10. Nc2 {[%emt 0:00:18]} Rc8 {[%emt 0:01:03]} 11. Rb1 {[%emt 0:02:51]} a6 {[%emt 0:05:00]} 12. Na4 {[%emt 0:06:40]} Be6 {[%emt 0:07:08]} 13. Nb6 {[%emt 0:01:33]} Rc7 {[%emt 0:05:41]} 14. a4 {[%emt 0:05:17]} Nd7 {[%emt 0:02:45]} 15. a5 {[%emt 0:00:42]} Qb8 {[%emt 0:04:02]} 16. b3 {[%emt 0:05:59]} Nxb6 {[%emt 0:01:05]} 17. Bxb6 {[%emt 0:00:18]} Rcc8 {[%emt 0:00:12]} 18. Ne3 {[%emt 0:02:51]} Ne5 {[%emt 0:05:14]} 19. Be2 {[%emt 0:05:47]} Nd7 {[%emt 0:00:39]} 20. Bd4 {[%emt 0:00:43]} Bxd4 {[%emt 0:03:14]} 21. Qxd4 {[%emt 0:00:11]} Qc7 {[%emt 0:01:06]} 22. Ra1 {[%emt 0:02:55]} Nc5 {[%emt 0:03:48]} 23. Ra3 {[%emt 0:00:25]} Rb8 {[%emt 0:05:42]} 24. b4 {[%emt 0:10:02]} Nd7 {[%emt 0:00:19]} 25. f4 {[%emt 0:00:42]} f6 {[%emt 0:04:58]} 26. O-O {[%emt 0:13:31]} b6 {[%emt 0:01:27]} 27. Nd5 {[%emt 0:01:13]} Bxd5 {[%emt 0:01:12]} 28. cxd5 {[%emt 0:00:18]} bxa5 {[%emt 0:08:43]} 29. Rxa5 {[%emt 0:02:19]} Qb6 {[%emt 0:00:20]} 30. Qxb6 {[%emt 0:00:12]} Rxb6 {[%emt 0:00:08]} 31. Rxa6 {[%emt 0:00:11]} Rxb4 {[%emt 0:00:08]} 32. Ra7 {[%emt 0:00:06]} Nc5 {[%emt 0:01:36]} 33. Bf3 {[%emt 0:03:03]} Rf7 {[%emt 0:02:07]} 34. e5 {[%emt 0:02:52]} Rb7 {[%emt 0:04:41]} 35. Ra5 {[%emt 0:08:23]} Rf8 {[%emt 0:02:31]} 36. exd6 {[%emt 0:08:29]} 1/2-1/2

[Event "Lueneburg Open-A 2019"]
[Site "Lueneburg"]
[Date "2019.08.09"]
[Round "7.9"]
[White "Jurkic, Bosiljko"]
[Black "Buchenau, Frank"]
[Result "1-0"]
[ECO "C06"]
[WhiteElo "2046"]
[BlackElo "2294"]
[Annotator "NA"]
[PlyCount "75"]
[EventDate "2019.08.03"]
[EventType "swiss"]
[EventCountry "GER"]
[SourceTitle "playchess.com"]
[Source "ChessBase"]
[SourceQuality "1"]
[TimeControl "40/5400+30:1800+30"]

1. e4 {[%emt 0:00:00]} e6 {[%emt 0:04:52]} 2. d4 {[%emt 0:00:11]} d5 {[%emt 0:00:14]} 3. Nd2 {[%emt 0:00:12]} Nf6 {[%emt 0:00:07]} 4. e5 {[%emt 0:00:22]} Nfd7 {[%emt 0:00:08]} 5. Bd3 {[%emt 0:01:04]} c5 {[%emt 0:00:08]} 6. c3 {[%emt 0:00:04]} b6 {[%emt 0:00:15]} 7. Ndf3 {[%emt 0:04:11]} Ba6 {[%emt 0:01:39]} 8. Bxa6 {[%emt 0:01:21]} Nxa6 {[%emt 0:00:06]} 9. Ne2 {[%emt 0:00:42]} Be7 {[%emt 0:01:12]} 10. O-O {[%emt 0:01:09]} Nc7 {[%emt 0:05:15]} 11. Re1 {[%emt 0:04:41]} c4 {[%emt 0:01:29]} 12. h3 {[%emt 0:02:12]} b5 {[%emt 0:00:18]} 13. Nh2 {[%emt 0:07:15]} Nb6 {[%emt 0:02:02]} 14. Nf4 {[%emt 0:07:23]} a5 {[%emt 0:02:38]} 15. Nh5 {[%emt 0:02:05]} g6 {[%emt 0:06:01]} 16. Nf6+ {[%emt 0:05:30]} Bxf6 {[%emt 0:01:24]} 17. exf6 {[%emt 0:00:07]} Qxf6 {[%emt 0:22:44]} 18. Ng4 {[%emt 0:01:35]} Qe7 {[%emt 0:07:46]} 19. Bh6 {[%emt 0:04:01]} Nd7 {[%emt 0:10:24]} 20. Qf3 {[%emt 0:11:23]} f6 {[%emt 0:06:34]} 21. Bf4 {[%emt 0:02:29]} Ra7 {[%emt 0:05:02]} 22. Qg3 {[%emt 0:01:38]} Kd8 {[%emt 0:02:12]} 23. Bd6 {[%emt 0:02:20]} Qf7 {[%emt 0:01:23]} 24. b3 {[%emt 0:14:19]} h5 {[%emt 0:02:34]} 25. Nh2 {[%emt 0:04:18]} Ne8 {[%emt 0:03:25]} 26. Bc5 {[%emt 0:00:56]} h4 {[%emt 0:01:43]} 27. Qe3 {[%emt 0:03:01]} Nxc5 {[%emt 0:01:34]} 28. dxc5 {[%emt 0:00:03]} e5 {[%emt 0:03:22]} 29. bxc4 {[%emt 0:00:38]} bxc4 {[%emt 0:01:05]} 30. Rab1 {[%emt 0:01:39]} Rb7 {[%emt 0:03:03]} 31. c6 {[%emt 0:02:36]} Rc7 {[%emt 0:02:30]} 32. Rb8+ {[%emt 0:03:46]} Ke7 {[%emt 0:00:56]} 33. Qc5+ {[%emt 0:03:18]} Ke6 {[%emt 0:00:02]} 34. Rd8 {[%emt 0:01:12]} Kf5 {[%emt 0:00:42]} 35. Rxd5 {[%emt 0:01:34]} Kg5 {[%emt 0:02:06]} 36. Rdxe5+ {[%emt 0:03:29]} fxe5 {[%emt 0:00:07]} 37. Qxe5+ {[%emt 0:00:11]} Qf5 {[%emt 0:00:41]} 38. Nf3+ {[%emt 0:00:33]} 1-0

[Event "Lueneburg Open-A 2019"]
[Site "Lueneburg"]
[Date "2019.08.09"]
[Round "7.10"]
[White "Koenig, Christian"]
[Black "Weishaeutel, Moritz"]
[Result "0-1"]
[ECO "B92"]
[WhiteElo "2026"]
[BlackElo "2276"]
[Annotator "NA"]
[PlyCount "64"]
[EventDate "2019.08.03"]
[EventType "swiss"]
[EventCountry "GER"]
[SourceTitle "playchess.com"]
[Source "ChessBase"]
[SourceQuality "1"]
[TimeControl "40/5400+30:1800+30"]

1. e4 {[%emt 0:00:00]} c5 {[%emt 0:00:00]} 2. Nf3 {[%emt 0:00:00]} d6 {[%emt 0:00:00]} 3. d4 {[%emt 0:00:00]} cxd4 {[%emt 0:00:00]} 4. Nxd4 {[%emt 0:00:00]} Nf6 {[%emt 0:00:00]} 5. Nc3 {[%emt 0:00:10]} a6 {[%emt 0:00:00]} 6. Be2 {[%emt 0:00:10]} Nbd7 {[%emt 0:00:00]} 7. g4 {[%emt 0:05:06]} h6 {[%emt 0:00:02]} 8. f4 {[%emt 0:09:53]} b5 {[%emt 0:00:20]} 9. Bf3 {[%emt 0:01:28]} Bb7 {[%emt 0:00:06]} 10. a3 {[%emt 0:02:44]} g6 {[%emt 0:10:11]} 11. Nde2 {[%emt 0:14:02]} Bg7 {[%emt 0:04:23]} 12. Ng3 {[%emt 0:02:05]} Rc8 {[%emt 0:03:40]} 13. Bd2 {[%emt 0:02:43]} Nb6 {[%emt 0:07:19]} 14. Qe2 {[%emt 0:03:08]} Nc4 {[%emt 0:03:36]} 15. Bc1 {[%emt 0:00:29]} Nd7 {[%emt 0:03:28]} 16. Nd1 {[%emt 0:01:51]} Qa5+ {[%emt 0:20:04]} 17. c3 {[%emt 0:00:19]} Qa4 {[%emt 0:02:01]} 18. Ne3 {[%emt 0:00:31]} Nc5 {[%emt 0:02:37]} 19. Nxc4 {[%emt 0:03:35]} bxc4 {[%emt 0:00:08]} 20. O-O {[%emt 0:02:45]} Nd3 {[%emt 0:01:07]} 21. Be3 {[%emt 0:00:54]} Qb5 {[%emt 0:01:50]} 22. Rab1 {[%emt 0:02:11]} Bc6 {[%emt 0:05:47]} 23. h4 {[%emt 0:02:24]} Bf6 {[%emt 0:05:22]} 24. g5 {[%emt 0:03:15]} hxg5 {[%emt 0:00:03]} 25. hxg5 {[%emt 0:00:21]} Bg7 {[%emt 0:00:06]} 26. f5 {[%emt 0:02:28]} Be5 {[%emt 0:01:25]} 27. fxg6 {[%emt 0:01:08]} fxg6 {[%emt 0:01:38]} 28. Bg4 {[%emt 0:01:19]} Bxg3 {[%emt 0:02:30]} 29. Bd4 {[%emt 0:00:28]} Rh4 {[%emt 0:04:02]} 30. Qf3 {[%emt 0:02:31]} Bf4 {[%emt 0:00:44]} 31. Bxc8 {[%emt 0:00:53]} Qxg5+ {[%emt 0:00:03]} 32. Qg2 {[%emt 0:00:47]} Bxe4 {[%emt 0:00:21]} 0-1

[Event "Lueneburg Open-A 2019"]
[Site "Lueneburg"]
[Date "2019.08.09"]
[Round "7.11"]
[White "Anderberg, Peter"]
[Black "Lubbe, Melanie"]
[Result "0-1"]
[ECO "A41"]
[WhiteElo "2014"]
[BlackElo "2258"]
[Annotator "NA"]
[PlyCount "126"]
[EventDate "2019.08.03"]
[EventType "swiss"]
[EventCountry "GER"]
[SourceTitle "playchess.com"]
[Source "ChessBase"]
[SourceQuality "1"]
[TimeControl "40/5400+30:1800+30"]

1. d4 {[%emt 0:00:56]} d6 {[%emt 0:00:00]} 2. c4 {[%emt 0:00:36]} e5 {[%emt 0:00:30]} 3. d5 {[%emt 0:03:29]} f5 {[%emt 0:01:49]} 4. e4 {[%emt 0:00:45]} fxe4 {[%emt 0:06:12]} 5. Nc3 {[%emt 0:00:49]} Nf6 {[%emt 0:02:41]} 6. Nge2 {[%emt 0:02:17]} Bf5 {[%emt 0:06:37]} 7. Ng3 {[%emt 0:00:55]} Bg6 {[%emt 0:00:07]} 8. Bg5 {[%emt 0:03:35]} Be7 {[%emt 0:07:47]} 9. Bxf6 {[%emt 0:03:01]} gxf6 {[%emt 0:03:32]} 10. h4 {[%emt 0:02:54]} Qd7 {[%emt 0:05:31]} 11. Ncxe4 {[%emt 0:13:44]} Na6 {[%emt 0:04:53]} 12. Be2 {[%emt 0:02:40]} f5 {[%emt 0:10:17]} 13. Ng5 {[%emt 0:02:26]} Bxg5 {[%emt 0:01:41]} 14. hxg5 {[%emt 0:00:05]} O-O-O {[%emt 0:03:03]} 15. Nh5 {[%emt 0:03:44]} Qe7 {[%emt 0:08:12]} 16. Qd2 {[%emt 0:02:40]} Nc5 {[%emt 0:04:01]} 17. Nf6 {[%emt 0:15:46]} h6 {[%emt 0:02:22]} 18. O-O-O {[%emt 0:03:03]} f4 {[%emt 0:04:12]} 19. b4 {[%emt 0:08:03]} Na4 {[%emt 0:02:44]} 20. Bg4+ {[%emt 0:00:47]} Kb8 {[%emt 0:00:09]} 21. Rh3 {[%emt 0:07:08]} hxg5 {[%emt 0:05:57]} 22. Nd7+ {[%emt 0:00:07]} Ka8 {[%emt 0:00:06]} 23. Ra3 {[%emt 0:00:15]} Nb6 {[%emt 0:01:29]} 24. Nxb6+ {[%emt 0:00:15]} cxb6 {[%emt 0:00:04]} 25. c5 {[%emt 0:02:08]} bxc5 {[%emt 0:02:18]} 26. bxc5 {[%emt 0:01:10]} Qc7 {[%emt 0:00:33]} 27. Rc3 {[%emt 0:01:41]} dxc5 {[%emt 0:00:48]} 28. d6 {[%emt 0:00:42]} Qb6 {[%emt 0:03:49]} 29. Rb3 {[%emt 0:01:30]} Qc6 {[%emt 0:00:06]} 30. d7 {[%emt 0:04:31]} c4 {[%emt 0:01:19]} 31. Rc3 {[%emt 0:02:40]} Bd3 {[%emt 0:04:53]} 32. Qxd3 {[%emt 0:00:40]} cxd3 {[%emt 0:00:07]} 33. Rxc6 {[%emt 0:00:04]} bxc6 {[%emt 0:00:08]} 34. Rxd3 {[%emt 0:00:17]} Kb8 {[%emt 0:00:57]} 35. Rd6 {[%emt 0:03:35]} Kc7 {[%emt 0:00:21]} 36. Rg6 {[%emt 0:00:30]} Rhg8 {[%emt 0:01:50]} 37. Rh6 {[%emt 0:00:38]} Rg7 {[%emt 0:02:10]} 38. f3 {[%emt 0:03:36]} a5 {[%emt 0:02:01]} 39. Kc2 {[%emt 0:00:43]} a4 {[%emt 0:00:29]} 40. Kc3 {[%emt 0:00:38]} Rb8 {[%emt 0:01:12]} 41. Be6 {[%emt 0:05:04]} a3 {[%emt 0:07:23]} 42. Kd3 {[%emt 0:03:20]} Rb2 {[%emt 0:08:45]} 43. Ke4 {[%emt 0:02:51]} Rxd7 {[%emt 0:06:30]} 44. Bxd7 {[%emt 0:04:14]} Kxd7 {[%emt 0:00:21]} 45. Kxe5 {[%emt 0:02:26]} Rxa2 {[%emt 0:03:40]} 46. Rh7+ {[%emt 0:01:06]} Kc8 {[%emt 0:00:07]} 47. Ra7 {[%emt 0:00:06]} Kb8 {[%emt 0:00:34]} 48. Ra4 {[%emt 0:00:19]} Kb7 {[%emt 0:01:17]} 49. Kf5 {[%emt 0:00:29]} Rxg2 {[%emt 0:01:05]} 50. Rxa3 {[%emt 0:00:08]} c5 {[%emt 0:02:14]} 51. Rc3 {[%emt 0:00:53]} Kc6 {[%emt 0:00:06]} 52. Rc1 {[%emt 0:00:09]} Kd5 {[%emt 0:01:01]} 53. Rd1+ {[%emt 0:01:29]} Kc4 {[%emt 0:00:01]} 54. Rc1+ {[%emt 0:02:34]} Kd4 {[%emt 0:00:06]} 55. Rd1+ {[%emt 0:00:17]} Ke3 {[%emt 0:01:27]} 56. Rc1 {[%emt 0:00:08]} Kxf3 {[%emt 0:00:27]} 57. Rxc5 {[%emt 0:00:17]} Kf2 {[%emt 0:00:56]} 58. Rc2+ {[%emt 0:03:33]} Kg3 {[%emt 0:00:19]} 59. Rc3+ {[%emt 0:00:17]} Kh2 {[%emt 0:01:07]} 60. Ra3 {[%emt 0:00:58]} Rg3 {[%emt 0:00:15]} 61. Ra2+ {[%emt 0:01:44]} Kh3 {[%emt 0:00:31]} 62. Rf2 {[%emt 0:02:25]} f3 {[%emt 0:00:43]} 63. Ke4 {[%emt 0:01:33]} g4 {[%emt 0:02:33]} 0-1

[Event "Lueneburg Open-A 2019"]
[Site "Lueneburg"]
[Date "2019.08.09"]
[Round "7.12"]
[White "Mueer, Sebastian"]
[Black "Grote, Dirk"]
[Result "1/2-1/2"]
[ECO "A11"]
[WhiteElo "2198"]
[BlackElo "2037"]
[Annotator "NA"]
[PlyCount "113"]
[EventDate "2019.08.03"]
[EventType "swiss"]
[EventCountry "GER"]
[SourceTitle "playchess.com"]
[Source "ChessBase"]
[SourceQuality "1"]
[TimeControl "40/5400+30:1800+30"]

1. Nf3 {[%emt 0:00:27]} d5 {[%emt 0:00:00]} 2. c4 {[%emt 0:00:14]} c6 {[%emt 0:00:04]} 3. g3 {[%emt 0:00:25]} Bg4 {[%emt 0:00:33]} 4. Bg2 {[%emt 0:00:37]} e6 {[%emt 0:00:31]} 5. O-O {[%emt 0:02:04]} Nd7 {[%emt 0:02:11]} 6. cxd5 {[%emt 0:01:13]} cxd5 {[%emt 0:01:55]} 7. d4 {[%emt 0:08:33]} Ngf6 {[%emt 0:02:59]} 8. Nc3 {[%emt 0:03:37]} Be7 {[%emt 0:03:02]} 9. Qb3 {[%emt 0:00:36]} Qb6 {[%emt 0:05:39]} 10. Qxb6 {[%emt 0:01:33]} Nxb6 {[%emt 0:00:50]} 11. Ne5 {[%emt 0:02:52]} Bf5 {[%emt 0:01:50]} 12. a4 {[%emt 0:05:54]} a5 {[%emt 0:24:57]} 13. h3 {[%emt 0:11:11]} h6 {[%emt 0:00:44]} 14. g4 {[%emt 0:02:52]} Bh7 {[%emt 0:01:04]} 15. Bd2 {[%emt 0:11:54]} O-O {[%emt 0:02:02]} 16. Rfc1 {[%emt 0:00:49]} Rfc8 {[%emt 0:00:43]} 17. e3 {[%emt 0:01:39]} Nc4 {[%emt 0:03:18]} 18. Nxc4 {[%emt 0:00:37]} Rxc4 {[%emt 0:00:13]} 19. Bf1 {[%emt 0:04:19]} Rcc8 {[%emt 0:00:55]} 20. Nb5 {[%emt 0:02:34]} Bd8 {[%emt 0:13:10]} 21. f3 {[%emt 0:00:36]} Ne8 {[%emt 0:02:17]} 22. Be1 {[%emt 0:03:43]} Kf8 {[%emt 0:00:59]} 23. Bg3 {[%emt 0:06:10]} Rc2 {[%emt 0:02:35]} 24. Rxc2 {[%emt 0:03:36]} Bxc2 {[%emt 0:00:07]} 25. Kf2 {[%emt 0:00:59]} Ke7 {[%emt 0:01:32]} 26. Ke1 {[%emt 0:00:20]} Kd7 {[%emt 0:01:57]} 27. Kd2 {[%emt 0:00:25]} Bg6 {[%emt 0:02:10]} 28. Re1 {[%emt 0:04:25]} Rc8 {[%emt 0:03:31]} 29. e4 {[%emt 0:00:38]} dxe4 {[%emt 0:01:08]} 30. fxe4 {[%emt 0:00:01]} Bg5+ {[%emt 0:00:15]} 31. Kd3 {[%emt 0:01:27]} f5 {[%emt 0:02:55]} 32. Bg2 {[%emt 0:03:29]} Nf6 {[%emt 0:09:08]} 33. Nd6 {[%emt 0:08:05]} fxe4+ {[%emt 0:01:26]} 34. Ke2 {[%emt 0:00:18]} Rc2+ {[%emt 0:00:49]} 35. Kf1 {[%emt 0:00:01]} Rxb2 {[%emt 0:01:29]} 36. Nc4 {[%emt 0:00:10]} Rb3 {[%emt 0:01:44]} 37. h4 {[%emt 0:07:52]} Rxg3 {[%emt 0:05:21]} 38. hxg5 {[%emt 0:00:12]} Nxg4 {[%emt 0:00:26]} 39. gxh6 {[%emt 0:00:11]} gxh6 {[%emt 0:00:14]} 40. Bxe4 {[%emt 0:01:17]} Bxe4 {[%emt 0:02:01]} 41. Rxe4 {[%emt 0:30:01]} h5 {[%emt 0:03:38]} 42. Nxa5 {[%emt 0:00:00]} b6 {[%emt 0:03:44]} 43. Nc4 {[%emt 0:00:00]} Rb3 {[%emt 0:00:44]} 44. a5 {[%emt 0:00:00]} bxa5 {[%emt 0:00:55]} 45. Nxa5 {[%emt 0:00:00]} Rb4 {[%emt 0:01:44]} 46. Ke2 {[%emt 0:00:00]} e5 {[%emt 0:02:21]} 47. Kd2 {[%emt 0:00:00]} Rxd4+ {[%emt 0:01:59]} 48. Rxd4+ {[%emt 0:00:00]} exd4 {[%emt 0:00:07]} 49. Nb3 {[%emt 0:00:00]} h4 {[%emt 0:04:07]} 50. Nxd4 {[%emt 0:00:00]} h3 {[%emt 0:00:55]} 51. Nf3 {[%emt 0:00:00]} Kd6 {[%emt 0:01:43]} 52. Ke2 {[%emt 0:00:00]} Kd5 {[%emt 0:00:44]} 53. Kf1 {[%emt 0:00:00]} Kc4 {[%emt 0:00:28]} 54. Kg1 {[%emt 0:00:00]} Kd3 {[%emt 0:00:13]} 55. Ne5+ {[%emt 0:00:00]} Nxe5 {[%emt 0:00:27]} 56. Kh2 {[%emt 0:00:00]} Nf3+ {[%emt 0:00:12]} 57. Kxh3 {[%emt 0:00:00]} 1/2-1/2

[Event "Lueneburg Open-A 2019"]
[Site "Lueneburg"]
[Date "2019.08.09"]
[Round "7.13"]
[White "Koellner, Aaron Noah"]
[Black "Comes, Bruno"]
[Result "1/2-1/2"]
[ECO "D05"]
[WhiteElo "2044"]
[BlackElo "2165"]
[Annotator "NA"]
[PlyCount "58"]
[EventDate "2019.08.03"]
[EventType "swiss"]
[EventCountry "GER"]
[SourceTitle "playchess.com"]
[Source "ChessBase"]
[SourceQuality "1"]
[TimeControl "40/5400+30:1800+30"]

1. Nf3 {[%emt 0:00:00]} c5 {[%emt 0:00:19]} 2. e3 {[%emt 0:00:00]} Nc6 {[%emt 0:01:00]} 3. d4 {[%emt 0:00:00]} e6 {[%emt 0:00:49]} 4. c3 {[%emt 0:00:36]} Nf6 {[%emt 0:02:18]} 5. Bd3 {[%emt 0:00:09]} Be7 {[%emt 0:02:46]} 6. O-O {[%emt 0:00:11]} d5 {[%emt 0:02:08]} 7. Nbd2 {[%emt 0:00:23]} O-O {[%emt 0:02:03]} 8. dxc5 {[%emt 0:00:11]} Bxc5 {[%emt 0:00:41]} 9. e4 {[%emt 0:00:05]} dxe4 {[%emt 0:03:20]} 10. Nxe4 {[%emt 0:00:32]} Be7 {[%emt 0:03:42]} 11. Qe2 {[%emt 0:11:37]} e5 {[%emt 0:08:59]} 12. Rd1 {[%emt 0:05:32]} Qc7 {[%emt 0:01:53]} 13. Nxf6+ {[%emt 0:11:23]} Bxf6 {[%emt 0:00:28]} 14. Ng5 {[%emt 0:01:06]} g6 {[%emt 0:04:22]} 15. h4 {[%emt 0:01:19]} Qe7 {[%emt 0:05:07]} 16. Be3 {[%emt 0:06:12]} b6 {[%emt 0:02:46]} 17. g3 {[%emt 0:05:52]} Bb7 {[%emt 0:06:58]} 18. Ne4 {[%emt 0:01:52]} Bg7 {[%emt 0:01:37]} 19. Bc4 {[%emt 0:07:15]} Nd4 {[%emt 0:10:45]} 20. Qg4 {[%emt 0:09:28]} Rac8 {[%emt 0:07:29]} 21. Bg5 {[%emt 0:06:45]} Qc7 {[%emt 0:04:40]} 22. cxd4 {[%emt 0:01:12]} Bxe4 {[%emt 0:05:24]} 23. Ba6 {[%emt 0:07:23]} Bb7 {[%emt 0:09:29]} 24. Bxb7 {[%emt 0:00:14]} Qxb7 {[%emt 0:00:13]} 25. d5 {[%emt 0:04:43]} h6 {[%emt 0:01:54]} 26. Be3 {[%emt 0:01:30]} Rfd8 {[%emt 0:01:41]} 27. h5 {[%emt 0:01:41]} Qd7 {[%emt 0:03:01]} 28. Qxd7 {[%emt 0:03:15]} Rxd7 {[%emt 0:00:02]} 29. hxg6 {[%emt 0:00:13]} fxg6 {[%emt 0:00:08]} 1/2-1/2